fUSD/lending_fUSD_20250820
["ID","MTS","AMOUNT","RATE_DAILY","PERIOD"]
[380329372,1755687032347,-300.0,0.00010052,2]
[380329373,1755687032356,-300.0,0.00010059,2]
[380329374,1755687032365,-128.39446481,0.00010063,2]
[380329375,1755687032377,-26.06553519,0.00010063,2]
[380329376,1755687032386,-154.46,0.00010074,2]
[380329377,1755687032396,-154.46,0.00010085,2]
[380329378,1755687032405,-154.46,0.00010096,2]
[380329379,1755687032414,-154.46,0.00010107,2]
[380329380,1755687032424,-49.08077991,0.00010118,2]
[380329381,1755687032437,-105.37922009,0.00010118,2]
[380329382,1755687032446,-154.46,0.00010129,2]
[380329383,1755687032455,-154.46,0.0001014,2]
[380329384,1755687032464,-154.46,0.00010151,2]
[380329385,1755687032474,-154.46,0.00010162,2]
[380329386,1755687032483,-154.46,0.00010173,2]
[380329387,1755687032492,-154.46,0.00010184,2]
[380329388,1755687032503,-1000.0,0.00010187,2]
[380329389,1755687032513,-154.46,0.00010195,2]
[380329390,1755687032523,-500.0,0.00010798,2]
[380329391,1755687032533,-300.0,0.00010802,2]
[380329392,1755687032542,-300.0,0.00010802,2]
[380329393,1755687032551,-1200.0,0.00010802,2]
[380329394,1755687032560,-300.0,0.00010803,2]
[380329395,1755687032570,-43954.34,0.00010804,2]
[380329396,1755687032579,-500.0,0.00010853,2]
[380329397,1755687032588,-705.32732,0.0001089,2]
[380329398,1755687032598,-150.0,0.00010899,2]
[380329399,1755687032607,-216.25265329,0.000109,2]
[380329400,1755687032617,-266.25666276,0.000109,2]
[380329401,1755687032627,-323.23644446,0.000109,2]
[380329402,1755687032636,-547.30720359,0.000109,2]
[380329403,1755687032645,-273.93094224,0.000109,2]
[380329404,1755687032655,-164.33866529,0.000109,2]
[380329405,1755687032665,-500.0,0.00010908,2]
[380329406,1755687032675,-150.0,0.00010959,2]
[380329407,1755687032685,-500.0,0.00010959,2]
[380329408,1755687032694,-500.0,0.00010963,2]
[380329409,1755687032704,-505.97087904,0.00010973,2]
[380329410,1755687032715,-533.613245,0.00010973,2]
[380329411,1755687032726,-500.0,0.00010973,2]
[380329412,1755687032735,-500.0,0.00010973,2]
[380329413,1755687032744,-500.98745473,0.00010973,2]
[380329414,1755687032753,-500.0,0.00010973,2]
[380329415,1755687032762,-500.0,0.00010973,2]
[380329416,1755687032772,-500.0,0.00010973,2]
[380329417,1755687032781,-500.0,0.00010973,2]
[380329418,1755687032790,-500.0,0.00010973,2]
[380329419,1755687032799,-500.0,0.00010973,2]
[380329420,1755687032808,-500.0,0.00010973,2]
[380329421,1755687032817,-500.0,0.00010973,2]
[380329422,1755687032826,-375.28656837,0.00010998,2]
[380329423,1755687032835,-211.55118171,0.00010998,2]
[380329424,1755687032844,-2000.0,0.00010999,2]
[380329425,1755687032853,-2000.0,0.00010999,2]
[380329426,1755687032862,-2000.0,0.00010999,2]
[380329427,1755687032871,-2000.0,0.00010999,2]
[380329428,1755687032881,-500.0,0.00010999,2]
[380329429,1755687032890,-2000.0,0.00010999,2]
[380329430,1755687032899,-2000.0,0.00010999,2]
[380329431,1755687032908,-500.0,0.00010999,2]
[380329432,1755687032918,-150.0,0.00010999,2]
[380329433,1755687032927,-982.0,0.00011,2]
[380329434,1755687032936,-117506.41473729,0.00011,2]
[380329435,1755687032945,-106200.94452121,0.00011,2]
[380329436,1755687032986,-529.24915692,0.00011,2]
[380329437,1755687033022,-3559.2,0.00011,2]
[380329438,1755687033039,-2040.62026662,0.00011,2]
[380329439,1755687033051,-2973.22672103,0.00011,2]
[380329440,1755687033110,-14690.81470522,0.00011,2]
[380329441,1755687033123,-117155.08799841,0.00011,2]
[380329451,1755687038483,-313.1888515,0.000109,2]
[380329452,1755687038493,-672.1696285,0.00011,2]
[380329644,1755687040316,-757.0588662,0.00011,2]
[380329736,1755687041326,-236.30861565,0.00011,2]
[380329738,1755687041342,-985.99330164,0.00011,2]
[380329989,1755687043644,-150.0,0.00010999,2]
[380329991,1755687043654,-500.0,0.00010999,2]
[380329993,1755687043663,-137.54400338,0.00011,2]
[380330066,1755687046350,-3129.7,0.00011,2]
[380330067,1755687046361,-4994.7001234,0.00011,2]
[380330068,1755687046372,-4967.00001,0.00011,2]
[380330069,1755687046383,-1563.28989423,0.00011,2]
[380330070,1755687046392,-997.88675693,0.00011,2]
[380330071,1755687046656,-128.01571989,0.00011,2]
[380330077,1755687616365,-228.94499673,0.00010229,2]
[380330078,1755687730585,407.54123158,0.00010229,120]
[380330079,1755687902326,170.0,0.00010151,7]
[380330173,1755688232669,-300.0,0.00010123,2]
[380330174,1755688232678,-700.0,0.0001015,2]
[380330175,1755688232689,-300.0,0.0001015,2]
[380330176,1755688232699,-43.33,0.00010168,2]
[380330179,1755688232751,-256.67,0.00010168,2]
[380330181,1755688232760,-292.9,0.00010169,2]
[380330183,1755688232770,-300.0,0.00010196,2]
[380330185,1755688232781,-17.10500327,0.00010229,2]
[380330187,1755688232790,-277.35679052,0.00010893,2]
[380330189,1755688232800,-1200.0,0.00010899,2]
[380330191,1755688232810,-208.79256766,0.000109,2]
[380330193,1755688232819,-232.97457995,0.000109,2]
[380330195,1755688232830,-547.30720358,0.000109,2]
[380330196,1755688232839,-164.33866529,0.000109,2]
[380330198,1755688232849,-2843.39165701,0.000109,2]
[380330201,1755688232861,-781.44138951,0.000109,2]
[380330203,1755688232870,-215.49096298,0.000109,2]
[380330205,1755688232880,-200.0,0.00010959,2]
[380330207,1755688232889,-500.0,0.00010973,2]
[380330209,1755688232899,-500.0,0.00010973,2]
[380330211,1755688232908,-500.0,0.00010973,2]
[380330213,1755688232917,-500.0,0.00010973,2]
[380330215,1755688232927,-500.0,0.00010973,2]
[380330217,1755688232936,-629.90530145,0.00010973,2]
[380330219,1755688232945,-366.60559306,0.00010973,2]
[380330221,1755688232955,-327.44063252,0.00010973,2]
[380330223,1755688232964,-161.71503412,0.00010973,2]
[380330225,1755688232974,-500.0,0.00010973,2]
[380330227,1755688232983,-501.08155073,0.00010973,2]
[380330229,1755688232992,-500.0,0.00010973,2]
[380330231,1755688233002,-501.21799405,0.00010973,2]
[380330233,1755688233011,-500.0,0.00010973,2]
[380330234,1755688233020,-502.42045195,0.00010973,2]
[380330236,1755688233030,-150.0,0.00010992,2]
[380330239,1755688233041,-721.12765535,0.00010993,2]
[380330241,1755688233053,-322.6107,0.00010993,2]
[380330243,1755688233063,-500.0,0.00010993,2]
[380330245,1755688233072,-151.0,0.00010993,2]
[380330247,1755688233082,-151.0,0.00010993,2]
[380330249,1755688233092,-151.0,0.00010993,2]
[380330251,1755688233104,-151.0,0.00010993,2]
[380330253,1755688233114,-151.0,0.00010993,2]
[380330255,1755688233124,-151.0,0.00010993,2]
[380330257,1755688233133,-159.47177447,0.00010993,2]
[380330259,1755688233145,-151.0,0.00010993,2]
[380330261,1755688233155,-151.0,0.00010993,2]
[380330263,1755688233167,-151.0,0.00010993,2]
[380330265,1755688233177,-151.0,0.00010993,2]
[380330267,1755688233187,-151.0,0.00010993,2]
[380330269,1755688233196,-151.0,0.00010993,2]
[380330271,1755688233206,-160.0,0.00010993,2]
[380330273,1755688233216,-1598.83164819,0.00010999,2]
[380330371,1755688237443,-386.06765181,0.00010999,2]
[380330372,1755688237453,-500.0,0.00010999,2]
[380330373,1755688237463,-784.0,0.00011,2]
[380330374,1755688237472,-2899.69721736,0.00011,2]
[380330375,1755688237495,-431.69598331,0.00011,2]
[380330376,1755688237511,-7288.13307113,0.00011,2]
[380330377,1755688237523,-1417.74917715,0.00011,2]
[380330378,1755688237612,-487.29264,0.00011,2]
[380330379,1755688237624,-2632.01999999,0.00011,2]
[380330380,1755688237637,-345.87173433,0.00011,2]
[380330381,1755688237649,-5382.36813485,0.00011,2]
[380330382,1755688237659,-5349.02820793,0.00011,2]
[380330383,1755688237671,-2550.6866527,0.00011,2]
[380330384,1755688237682,-670.3099998,0.00011,2]
[380330385,1755688237732,-436.0,0.00011,2]
[380330559,1755688239467,-287.9629999,0.00011,2]
[380330572,1755688239578,-6818.30011143,0.00011,2]
[380330574,1755688239590,-2249.95340702,0.00011,2]
[380330579,1755688239630,-1768.49131959,0.00011,2]
[380330983,1755688244314,-310.13860486,0.00011,2]
[380330984,1755688244346,-1869.29553462,0.00011,2]
[380330985,1755688244385,-47607.11070998,0.00011,2]
[380330986,1755688244395,-8721.8822215,0.00011,2]
[380330987,1755688244404,-10328.65617125,0.00011,2]
[380330988,1755688244415,-25186.3396482,0.00011,2]
[380330989,1755688244427,-2079.0,0.00011,2]
[380331007,1755688245633,-6314.26903983,0.00011,2]
[380331008,1755688245794,-7411.5729291,0.00011,2]
[380331109,1755688327894,-153.39,0.00010027,2]
[380331110,1755688327919,-138.287148,0.00010038,2]
[380331111,1755688610048,228.94499673,9.954e-05,2]
[380331112,1755688788801,467.19279634,0.00024,120]
[380331113,1755688901158,170.0,0.00010096,7]
[380331114,1755688908085,1500.0,0.00024,120]
[380331115,1755688967597,3618.17473327,0.0001,2]
[380331116,1755688967618,15000.0,0.0001,2]
[380331117,1755688967639,15000.0,0.0001,2]
[380331118,1755688967660,6907.78176967,0.0001,2]
[380331122,1755689279111,-262.957459,0.00010016,2]
[380331123,1755689282866,-151.0,0.00010016,2]
[380331124,1755689285660,-151.0,0.00010016,2]
[380331125,1755689289219,-189.33712267,0.00010016,2]
[380331126,1755689292388,-245.70541833,0.00010016,2]
[380331127,1755689301214,153.37,9.909e-05,2]
[380331128,1755689301447,153.37,9.956e-05,2]
[380331130,1755689343766,-153.37,0.00010003,2]
[380331131,1755689343790,-73.106712,0.00010003,2]
[380331132,1755689346059,-151.0,0.00010003,2]
[380331133,1755689350371,-58.64181271,0.00010003,2]
[380331134,1755689350394,-354.81147529,0.00010013,2]
[380331135,1755689353748,-210.14852471,0.00010013,2]
[380331142,1755689431772,-300.0,0.00010035,2]
[380331143,1755689431782,-300.0,0.00010042,2]
[380331144,1755689431791,-153.37,0.0001005,2]
[380331145,1755689431800,-1500.0,0.00010096,2]
[380331146,1755689431810,-162.78,0.00010113,2]
[380331147,1755689431819,-250.0,0.00010145,2]
[380331148,1755689431828,-158.54,0.00010169,2]
[380331149,1755689431837,-1764.39485017,0.00010181,2]
[380331150,1755689431848,-343.17697357,0.00010181,2]
[380331151,1755689431859,-141.96817626,0.00010181,2]
[380331152,1755689431874,-162.92,0.00010372,2]
[380331153,1755689431893,-277.35679052,0.00010449,2]
[380331154,1755689431905,-1200.0,0.00010897,2]
[380331155,1755689431914,-300.0,0.00010899,2]
[380331156,1755689431923,-234.79795044,0.000109,2]
[380331157,1755689431932,-154.0,0.000109,2]
[380331158,1755689431941,-154.0,0.000109,2]
[380331159,1755689431950,-154.0,0.000109,2]
[380331160,1755689431959,-154.0,0.000109,2]
[380331161,1755689431968,-203.85275743,0.000109,2]
[380331162,1755689431978,-547.30720358,0.000109,2]
[380331163,1755689431987,-457.68056888,0.00010973,2]
[380331164,1755689431998,-500.0,0.00010973,2]
[380331165,1755689432010,-500.0,0.00010973,2]
[380331166,1755689432018,-348.42295154,0.00010973,2]
[380331167,1755689432027,-500.0,0.00010973,2]
[380331168,1755689432036,-500.0,0.00010973,2]
[380331169,1755689432047,-154.0,0.0001098,2]
[380331170,1755689432056,-154.0,0.0001098,2]
[380331171,1755689432066,-154.0,0.0001098,2]
[380331172,1755689432076,-154.0,0.0001098,2]
[380331173,1755689432086,-154.0,0.0001098,2]
[380331174,1755689432095,-154.0,0.0001098,3]
[380331175,1755689432104,-160.16,0.0001098,3]
[380331176,1755689432113,-150.0,0.00010992,2]
[380331177,1755689432122,-151.0,0.00010993,2]
[380331178,1755689432131,-160.0,0.00010993,2]
[380331179,1755689432140,-151.0,0.00010993,2]
[380331180,1755689432149,-151.0,0.00010993,2]
[380331181,1755689432159,-151.0,0.00010993,2]
[380331182,1755689432168,-1.40739782,0.00010993,2]
[380331185,1755689432198,-149.59260218,0.00010993,2]
[380331187,1755689432207,-151.91934601,0.00010993,2]
[380331190,1755689432216,-500.0,0.00010993,2]
[380331193,1755689432225,-151.0,0.00010993,2]
[380331196,1755689432235,-495.89671425,0.00010993,2]
[380331198,1755689432250,-225.2309411,0.00010993,2]
[380331200,1755689432259,-322.6107,0.00010993,2]
[380331202,1755689432268,-3851.8244079,0.00010998,2]
[380331204,1755689432278,-500.0,0.00010999,2]
[380331206,1755689432287,-830.0,0.00011,2]
[380331208,1755689432296,-4360.94111075,0.00011,2]
[380331210,1755689432307,-1185.26042926,0.00011,2]
[380331212,1755689432319,-1900.0,0.00011,2]
[380331214,1755689432331,-1824.46017985,0.00011,2]
[380331216,1755689432342,-2395.50122791,0.00011,2]
[380331228,1755689432839,-2254.58509805,0.00011,2]
[380331229,1755689432851,-267.71244107,0.00011,2]
[380331230,1755689432863,-1793.72759095,0.00011,2]
[380331397,1755689439587,-56924.34379223,0.00011,2]
[380331402,1755689439612,-11113.38300372,0.00011,2]
[380331404,1755689439623,-7256.62462054,0.00011,2]
[380331407,1755689439635,-23146.03536535,0.00011,2]
[380331410,1755689439660,-10935.72544955,0.00011,2]
[380331439,1755689439924,-2880.5,0.00011,2]
[380331442,1755689439936,-638.50590204,0.00011,2]
[380331445,1755689439961,-3326.70337026,0.00011,2]
[380331448,1755689439973,-14642.78227071,0.00011,2]
[380331450,1755689439988,-584.07100083,0.00011,2]
[380331465,1755689440128,-47.50932059,0.00011,2]
[380331659,1755689442967,-8335.55447927,0.00011,2]
[380331660,1755689442977,-1791263.81419083,0.00011,2]
[380331665,1755689445718,-4360.94111075,0.00011,2]
[380331666,1755689445728,-1719.28852735,0.00011,2]
[380331671,1755689981682,170.0,0.00010132,7]
[380331673,1755690045490,-234.32,0.00010076,2]
[380331674,1755690045510,-234.32,0.00010093,2]
[380331675,1755690045522,-36314.71043822,0.00010093,2]
[380331676,1755690052767,-15104.36749145,0.00010093,2]
[380331677,1755690256569,179.61,9.825e-05,2]
[380331678,1755690256763,179.61,9.871e-05,2]
[380331679,1755690273310,179.61,9.918e-05,2]
[380331680,1755690273573,179.61,9.964e-05,2]
[380331681,1755690290843,480.75,9.96e-05,2]
[380331682,1755690309675,1639.66,9.964e-05,2]
[380331683,1755690337105,500.0,9.992e-05,2]
[380331684,1755690338193,500.0,9.992e-05,2]
[380331685,1755690339232,500.0,9.992e-05,2]
[380331686,1755690352933,500.0,9.992e-05,2]
[380331687,1755690353426,500.0,9.992e-05,2]
[380331688,1755690353885,500.0,9.992e-05,2]
[380331689,1755690356531,500.0,9.992e-05,2]
[380331690,1755690356588,500.0,9.992e-05,2]
[380331691,1755690356643,500.0,9.992e-05,2]
[380331692,1755690356756,446.62823033,9.992e-05,2]
[380331693,1755690356780,53.37176967,9.992e-05,2]
[380331694,1755690356858,500.0,9.992e-05,2]
[380331695,1755690356945,500.0,9.992e-05,2]
[380331696,1755690357029,500.0,9.992e-05,2]
[380331697,1755690357395,500.0,9.992e-05,2]
[380331698,1755690357849,500.0,9.992e-05,2]
[380331699,1755690358874,500.0,9.992e-05,2]
[380331700,1755690359372,500.0,9.992e-05,2]
[380331701,1755690359788,500.0,9.992e-05,2]
[380331702,1755690360248,500.0,9.992e-05,2]
[380331703,1755690360706,500.0,9.992e-05,2]
[380331704,1755690361129,500.0,9.992e-05,2]
[380331705,1755690361823,500.0,9.992e-05,2]
[380331706,1755690362253,500.0,9.992e-05,2]
[380331707,1755690362677,500.0,9.992e-05,2]
[380331708,1755690363149,500.0,9.992e-05,2]
[380331709,1755690363606,500.0,9.992e-05,2]
[380331710,1755690364733,500.0,9.992e-05,2]
[380331711,1755690364869,500.0,9.992e-05,2]
[380331712,1755690364979,500.0,9.992e-05,2]
[380331713,1755690365288,500.0,9.992e-05,2]
[380331714,1755690365881,500.0,9.992e-05,2]
[380331716,1755690368373,500.0,9.992e-05,2]
[380331717,1755690368947,500.0,9.992e-05,2]
[380331718,1755690369022,500.0,9.992e-05,2]
[380331719,1755690369157,500.0,9.992e-05,2]
[380331720,1755690369366,500.0,9.992e-05,2]
[380331721,1755690369778,500.0,9.992e-05,2]
[380331722,1755690370253,500.0,9.992e-05,2]
[380331723,1755690370668,500.0,9.992e-05,2]
[380331724,1755690371082,290.37097899,9.992e-05,2]
[380331725,1755690393177,-790.93,0.00010011,2]
[380331726,1755690393202,-1200.0,0.00010092,2]
[380331727,1755690393226,-300.0,0.00010092,2]
[380331728,1755690393252,-300.0,0.00010092,2]
[380331729,1755690393276,-300.0,0.00010093,2]
[380331730,1755690393302,-53346.60207033,0.00010093,2]
[380331731,1755690393329,-300.0,0.00010186,2]
[380331732,1755690393354,-250.0,0.00010279,2]
[380331733,1755690393379,-300.0,0.00010387,2]
[380331734,1755690393405,-154.95,0.00010464,2]
[380331735,1755690393428,-150.0,0.00010498,2]
[380331736,1755690393450,-220.59692606,0.0001078,2]
[380331737,1755690393477,-9383.83066692,0.0001089,2]
[380331738,1755690393500,-996.8364,0.00010893,2]
[380331739,1755690393524,-277.35679052,0.00010893,2]
[380331740,1755690393548,-226.59936492,0.000109,2]
[380331741,1755690393574,-6419.057,0.000109,2]
[380331742,1755690393600,-646.96889476,0.000109,2]
[380331743,1755690393623,-176.05255947,0.000109,2]
[380331744,1755690393648,-158.54,0.00010963,2]
[380331745,1755690393674,-201.16,0.0001097,2]
[380331746,1755690393698,-300.92,0.0001097,2]
[380331747,1755690393723,-201.99,0.0001097,2]
[380331748,1755690393749,-202.42,0.0001097,2]
[380331749,1755690393773,-500.0,0.00010973,2]
[380331750,1755690393797,-500.0,0.00010973,2]
[380331751,1755690393822,-500.0,0.00010973,2]
[380331752,1755690393846,-500.0,0.00010973,2]
[380331753,1755690393872,-200.7024043,0.00010973,2]
[380331754,1755690393899,-500.0,0.00010973,2]
[380331755,1755690393923,-500.0,0.00010973,2]
[380331756,1755690393947,-5812.5342438,0.00010977,2]
[380331757,1755690393972,-162.86565293,0.0001099,2]
[380331758,1755690393996,-502.84593105,0.00010993,2]
[380331759,1755690394020,-721.12765535,0.00010993,2]
[380331760,1755690394044,-160.0,0.00010993,2]
[380331761,1755690394068,-1131.57188203,0.00010993,2]
[380331762,1755690394092,-500.0,0.00010993,2]
[380331763,1755690394115,-151.0,0.00010993,2]
[380331764,1755690394140,-277.3893,0.00010993,2]
[380331765,1755690394166,-2000.0,0.00010999,2]
[380331766,1755690394191,-500.0,0.00010999,2]
[380331767,1755690394218,-150.0,0.00010999,2]
[380331768,1755690394245,-666.0,0.00010999,2]
[380331769,1755690394270,-870.0,0.00011,2]
[380331770,1755690394767,-202.46,0.00011,2]
[380331771,1755690394807,-200.9,0.00011,2]
[380331772,1755690394833,-202.07,0.00011,2]
[380331773,1755690394858,-645783.72225756,0.00011,2]
[380331776,1755690464835,500.0,0.00024658,120]
[380331777,1755690467945,500.0,0.00024658,120]
[380331778,1755690468790,500.0,0.00024658,120]
[380331779,1755690474302,500.0,0.00024658,120]
[380331780,1755690475957,500.0,0.00024658,120]
[380331781,1755690476075,500.0,0.00024658,120]
[380331782,1755690476169,500.0,0.00024658,120]
[380331783,1755690476923,500.0,0.00024658,120]
[380331784,1755690477481,500.0,0.00024658,120]
[380331785,1755690477984,500.0,0.00024658,120]
[380331786,1755690478405,500.0,0.00024658,120]
[380331787,1755690478971,500.0,0.00024658,120]
[380331788,1755690479406,500.0,0.00024658,120]
[380331789,1755690479863,500.0,0.00024658,120]
[380331790,1755690480285,500.0,0.00024658,120]
[380331791,1755690480719,500.0,0.00024658,120]
[380331792,1755690481238,500.0,0.00024658,120]
[380331793,1755690481832,500.0,0.00024658,120]
[380331794,1755690482196,500.0,0.00024658,120]
[380331795,1755690482562,500.0,0.00024658,120]
[380331796,1755690482898,500.0,0.00024658,120]
[380331797,1755690483301,500.0,0.00024658,120]
[380331798,1755690484001,500.0,0.00024658,120]
[380331799,1755690484519,500.0,0.00024658,120]
[380331800,1755690484946,500.0,0.00024658,120]
[380331801,1755690485899,500.0,0.00024658,120]
[380331802,1755690488049,500.0,0.00024658,120]
[380331803,1755690488116,500.0,0.00024658,120]
[380331804,1755690488910,500.0,0.00024658,120]
[380331805,1755690490289,500.0,0.00024658,120]
[380331806,1755690491191,500.0,0.00024658,120]
[380331807,1755690497277,500.0,0.00024658,120]
[380331808,1755690497756,500.0,0.00024658,120]
[380331809,1755690499842,500.0,0.00024658,120]
[380331810,1755690499916,500.0,0.00024658,120]
[380331811,1755690499977,500.0,0.00024658,120]
[380331812,1755690514157,500.0,0.00024658,120]
[380331813,1755690514248,500.0,0.00024658,120]
[380331814,1755690514321,500.0,0.00024658,120]
[380331815,1755690514377,500.0,0.00024658,120]
[380331816,1755690514434,500.0,0.00024658,120]
[380331817,1755690514518,500.0,0.00024658,120]
[380331818,1755690528277,500.0,0.00024658,120]
[380331819,1755690529529,500.0,0.00024658,120]
[380331820,1755690530516,500.0,0.00024658,120]
[380331821,1755690531921,500.0,0.00024658,120]
[380331822,1755690532739,500.0,0.00024658,120]
[380331823,1755690538033,473.20473727,0.00024658,120]
[380331824,1755690584218,-754.43,0.00010076,2]
[380331825,1755690584239,-4548.65,0.00010076,2]
[380331826,1755690584261,-152.0,0.00010076,2]
[380331827,1755690584283,-300.0,0.00010084,2]
[380331828,1755690584304,-300.0,0.00010091,2]
[380331829,1755690584325,-300.0,0.00010343,2]
[380331830,1755690584347,-277.35679052,0.00010449,2]
[380331831,1755690584375,-300.0,0.000105,3]
[380331832,1755690584397,-600.0,0.000106,3]
[380331833,1755690584425,-1000.0,0.000107,3]
[380331834,1755690584450,-1300.0,0.000108,3]
[380331835,1755690584472,-300.0,0.00010899,2]
[380331836,1755690584493,-388.21771223,0.000109,2]
[380331837,1755690584514,-151.61069561,0.000109,2]
[380331838,1755690584535,-1700.0,0.000109,3]
[380331839,1755690584557,-239.51838317,0.000109,2]
[380331840,1755690584578,-176.05255946,0.000109,2]
[380331841,1755690584599,-173.2494873,0.000109,2]
[380331842,1755690584622,-2038.91437171,0.0001091,2]
[380331843,1755690584829,-477.11056099,0.0001091,2]
[380331844,1755690584850,-500.0,0.00010973,2]
[380331845,1755690584872,-500.0,0.00010973,2]
[380331846,1755690584894,-500.0,0.00010973,2]
[380331847,1755690584917,-500.0,0.00010973,2]
[380331848,1755690584938,-160.0,0.00010993,2]
[380331849,1755690584960,-322.6107,0.00010993,2]
[380331850,1755690584983,-500.0,0.00010993,2]
[380331851,1755690585006,-3000.0,0.00010998,2]
[380331852,1755690585027,-2000.0,0.00010999,2]
[380331853,1755690585050,-1200.0,0.00010999,2]
[380331854,1755690585072,-150.0,0.00010999,2]
[380331855,1755690585094,-500.0,0.00010999,2]
[380331856,1755690585116,-200.52899506,0.00010999,2]
[380331857,1755690585137,-500.0,0.00010999,2]
[380331858,1755690585161,-500.0,0.00010999,2]
[380331859,1755690585182,-361.19724774,0.00010999,2]
[380331860,1755690585203,-645.41517033,0.00010999,2]
[380331861,1755690585228,-698.0,0.00011,2]
[380331862,1755690585251,-1785.13732588,0.00011,2]
[380331863,1755690585325,-15000.0,0.00011,2]
[380331864,1755690585633,-15000.0,0.00011,2]
[380331865,1755690585934,-1128.0951357,0.00011,2]
[380331866,1755690585956,-13871.9048643,0.00011,2]
[380331867,1755690586262,-15000.0,0.00011,2]
[380331868,1755690586622,-15000.0,0.00011,2]
[380331869,1755690587143,-15000.0,0.00011,2]
[380331870,1755690591255,-15000.0,0.00011,2]
[380331871,1755690591850,-15000.0,0.00011,2]
[380331872,1755690592432,-15000.0,0.00011,2]
[380331873,1755690592884,-15000.0,0.00011,2]
[380331874,1755690593547,-15000.0,0.00011,2]
[380331875,1755690594074,-15000.0,0.00011,2]
[380331876,1755690596232,-15000.0,0.00011,2]
[380331877,1755690596318,-15000.0,0.00011,2]
[380331878,1755690596421,-15000.0,0.00011,2]
[380331879,1755690598399,-15000.0,0.00011,2]
[380331880,1755690598958,-15000.0,0.00011,2]
[380331881,1755690599471,-15000.0,0.00011,2]
[380331882,1755690600002,-15000.0,0.00011,2]
[380331883,1755690600584,-15000.0,0.00011,2]
[380331884,1755690601092,-15000.0,0.00011,2]
[380331885,1755690601594,-15000.0,0.00011,2]
[380331886,1755690601913,-300.0,0.00010999,2]
[380331887,1755690601936,-14700.0,0.00011,2]
[380331888,1755690602486,-300.0,0.00010999,2]
[380331889,1755690602510,-1200.0,0.00010999,2]
[380331890,1755690602534,-13500.0,0.00011,2]
[380331891,1755690603069,-15000.0,0.00011,2]
[380331892,1755690603602,-15000.0,0.00011,2]
[380331893,1755690604188,-15000.0,0.00011,2]
[380331894,1755690604710,-15000.0,0.00011,2]
[380331895,1755690605261,-15000.0,0.00011,2]
[380331896,1755690605919,-15000.0,0.00011,2]
[380331897,1755690608091,-15000.0,0.00011,2]
[380331898,1755690608190,-15000.0,0.00011,2]
[380331899,1755690608376,-500.0,0.00010973,2]
[380331900,1755690608401,-14500.0,0.00011,2]
[380331901,1755690609498,-15000.0,0.00011,2]
[380331902,1755690610012,-15000.0,0.00011,2]
[380331903,1755690610572,-15000.0,0.00011,2]
[380331904,1755690611148,-15000.0,0.00011,2]
[380331905,1755690611428,-15000.0,0.00011,2]
[380331906,1755690611744,-15000.0,0.00011,2]
[380331907,1755690612776,-15000.0,0.00011,2]
[380331908,1755690612828,-15000.0,0.00011,2]
[380331909,1755690613361,-15000.0,0.00011,2]
[380331910,1755690613891,-15000.0,0.00011,2]